Cogmind - Beta 13 @@@ ROGUE MODE // 2024.06.16 @ 23:05:03 Player: Essnato Result: Destroyed by D-53 Grenadier with Mini Grenade Launcher Performance ------------- Evolutions (0) 0 Regions Visited (3) 600 Robots Destroyed (13) 65 Value Destroyed (244) 244 Prototype IDs (0) 0 Alien Tech Used (0) 0 Bonus (-25) -25 TOTAL SCORE: 884 Bonus ------- Friendly Fire -25 Cogmind --------- Core Integrity 0/250 Matter 281/300 Energy 98/100 System Corruption 0% Temperature Cool (0) Movement Core (50) Location -7/Recycling Parts ------- > --- POWER (1) -------- (None) > --- PROPULSION (2) --- (None) > --- UTILITY (2) ------ Armored Scrap Engine > --- WEAPON (2) ------- (None) > --- INVENTORY (5) ---- Small Storage Unit Signal Interpreter Improved Terrain Scanner Hacking Suite Plasma Cutter Peak State ------------ > --- POWER ------------ Light Ion Engine > --- PROPULSION ------- Light Treads Light Treads > --- UTILITY ---------- Armored Scrap Engine > --- WEAPON ----------- Medium Laser Grenade Launcher > --- INVENTORY -------- Small Storage Unit High-capacity Storage Unit Signal Interpreter Improved Terrain Scanner Plasma Cutter [Rating: 23] Favorites ----------- Power Light Ion Engine Engine Light Ion Engine Power Core Nuclear Core Propulsion Light Treads Treads Light Treads Utility Small Storage Unit Device Improved Terrain Scanner Storage Small Storage Unit Weapon Medium Laser Energy Gun Medium Laser Launcher Grenade Launcher Build | -11 -10 -10 -7 ------- Run | Yrd Mat Sub Rec Slots Evolved . | . . . . Power . | . . . . Propulsion . | . . . . Utility . | . . . . Weapon . | . . . . Parts Attached 12 | 7 . 1 4 Power 2 | 1 . . 1 Engine 1 | 1 . . . Core 1 | . . . 1 Reactor . | . . . . Propulsion 2 | 2 . . . Treads 2 | 2 . . . Leg . | . . . . Wheel . | . . . . Hover . | . . . . Flight . | . . . . Utility 3 | 2 . . 1 Device 2 | 1 . . 1 Storage 1 | 1 . . . Processor . | . . . . Hackware . | . . . . Protection . | . . . . Artifact . | . . . . Weapon 5 | 2 . 1 2 Energy Gun 3 | 2 . . 1 Energy Cannon . | . . . . Ballistic Gun . | . . . . Ballistic Cannon . | . . . . Launcher 2 | . . 1 1 Special Weapon . | . . . . Impact Weapon . | . . . . Slashing Weapon . | . . . . Piercing Weapon . | . . . . Special Melee Weapon . | . . . . Unidentified Prototypes . | . . . . Parts Lost 5 | . . . 5 Power 1 | . . . 1 Propulsion 2 | . . . 2 Utility . | . . . . Weapon 2 | . . . 2 Highest Loss Streak 2 | . . . 2 To Critical Strikes . | . . . . Average Slot Usage (%) 84 | . 100 100 40 Engine 11 | . 14 14 4 Treads 24 | . 28 28 14 Device 14 | . 14 14 14 Storage 10 | . 14 14 . Energy Gun 21 | . 28 22 3 Launcher 1 | . . 5 3 Naked Turns . | . . . . Heaviest Build 14 | 13 13 14 14 Greatest Support 40 | 40 40 40 40 Greatest Overweight (x) 2 | . . . 2 Average Overweight (x) . | . . . . Largest Inventory Capacity 8 | 8 8 8 8 Average Capacity 7 | 7 8 8 5 Most Carried 8 | 4 8 8 8 Average Carried 6 | 3 7 7 4 Final Capacity 8 | 8 8 8 5 Final Carried 8 | 4 8 8 5 Scrap Engine Consumption 7 | . . . 7 Class Distribution -------------------- 100% | Mutant Dominant Class ---------------- Mutant | -10/Materials Mutant | -10/Subcaves Mutant | -7/Recycling Resources | -11 -10 -10 -7 ----------- Run | Yrd Mat Sub Rec Matter Collected 320 | 270 . 30 20 Remotely . | . . . . Salvage Created 446 | 179 10 65 192 Parts 23 | 12 4 6 1 Haulers Intercepted . | . . . . Recyclers Shooed . | . . . . Parts Field Recycled . | . . . . Retrieved Matter . | . . . . Parts Self-Destructed 4 | . . 4 . Prevented . | . . . . Kills | -11 -10 -10 -7 ------- Run | Yrd Mat Sub Rec Combat Hostiles Destroyed 5 | . . 3 2 Guns 1 | . . 1 . AOE 3 | . . 2 1 Classes Destroyed 8 | 3 1 2 2 Worker 2 | 2 . . . Tunneler 4 | 4 . . . Recycler 1 | 1 . . . Watcher 1 | . 1 . . Swarmer 1 | . . 1 . Grunt 1 | . . . 1 Hunter 1 | . . . 1 Subdweller 2 | . . 2 . Best Kill Streak 3 | 2 1 3 1 Combat Bots Only 3 | . . 3 1 Max Kills in Single Turn 1 | 1 1 1 1 Gunslinging . | . . . . Exploded 1 | . . 1 1 Melee . | . . . . Uniques/NPCs Destroyed . | . . . . Combat | -11 -10 -10 -7 -------- Run | Yrd Mat Sub Rec Hostile Shots Fired 215 | . . 7 208 Missed 104 | . . 4 100 Damage Taken 1116 | . . 63 1053 Core 259 | . . 4 255 Absorbed by Shields . | . . . . Regen/Repaired (Parts) 92 | . . . 92 Core Remaining (%) 100 | 100 . . . Volleys Fired 36 | 12 6 9 9 Largest 2 | 2 2 1 1 Hottest 100 | 100 100 50 50 Shots Fired 54 | 24 12 9 9 Gun 51 | 24 12 7 8 Cannon . | . . . . Launcher 3 | . . 2 1 Special . | . . . . Kinetic . | . . . . Thermal 51 | 24 12 7 8 Explosive 3 | . . 2 1 Electromagnetic . | . . . . Robot Hit Streak 6 | 6 3 3 3 Robot Miss Streak 5 | 2 5 4 1 Penetration Max . | . . . . Secondary Targets . | . . . . Shots Hit Robots 31 | 15 6 4 6 Core Hits 22 | 8 2 6 6 Critical Kills . | . . . . Critical Parts Destroyed . | . . . . Critical Strikes 2 | 1 . . 1 Burn 2 | 1 . . 1 Melee Attacks . | . . . . Impact . | . . . . Slashing . | . . . . Piercing . | . . . . Sneak Attacks . | . . . . Combat Hostiles . | . . . . Follow-up Attacks . | . . . . Damage Inflicted 919 | 198 73 380 268 Guns 371 | 198 73 25 75 Cannons . | . . . . Explosions 548 | . . 355 193 Melee . | . . . . Ramming . | . . . . Kinetic . | . . . . Thermal 371 | 198 73 25 75 Explosive 548 | . . 355 193 Electromagnetic . | . . . . Impact . | . . . . Slashing . | . . . . Piercing . | . . . . Highest Corruption . | . . . . Average Corruption . | . . . . Corruption Purged . | . . . . Corruption Blocked . | . . . . Overload Shots . | . . . . Overflow Damage 46 | . . . 46 Projectiles . | . . . . Explosions 46 | . . . 46 Melee . | . . . . Knockbacks . | . . . . Impact . | . . . . Kinetic . | . . . . Secondary . | . . . . Self-Inflicted Damage 41 | . . 14 27 Shots 2 | . . 1 1 Rammed 1 | . . . 1 Targets Rammed 1 | . . . 1 Kicked . | . . . . Crushed . | . . . . Highest Temperature 156 | 138 156 . 152 Average Temperature 60 | 48 66 . 84 Received Heat Transfer 306 | . . 18 288 Siege Activations . | . . . . Robots Corrupted . | . . . . Combat Hostiles . | . . . . Parts Fried . | . . . . Impact Corruptions . | . . . . Robots Melted 1 | . . . 1 Combat Hostiles 1 | . . . 1 Parts Melted . | . . . . Heat Transferred 1258 | 666 222 74 296 Parts Sabotaged . | . . . . Parts Stolen . | . . . . Parts Stripped . | . . . . Power Chain Reactions . | . . . . Alert | -11 -10 -10 -7 ------- Run | Yrd Mat Sub Rec Peak Influence 223 | 35 49 . 223 Initial 132 | . 22 . 132 Average 46 | 14 18 . 143 Maximum Alert Level 1 | . . . 1 Low Security (%) 97 | 100 100 . 88 Level 1 2 | . . . 11 Level 2 . | . . . . Level 3 . | . . . . Level 4 . | . . . . Level 5 . | . . . . High Security . | . . . . Max Security . | . . . . Squads Dispatched 1 | . 1 . . Investigation . | . . . . Extermination . | . . . . Reinforcement 1 | . 1 . . Assault . | . . . . Garrison . | . . . . Intercept . | . . . . Searches Triggered . | . . . . Construction Impeded . | . . . . Haulers Reinforced . | . . . . Active Scanning Responses . | . . . . Cargo Convoy Interrupts . | . . . . Stealth | -11 -10 -10 -7 --------- Run | Yrd Mat Sub Rec Distress Signals . | . . . . Communications Jammed . | . . . . Distress Signals . | . . . . Times Spotted 40 | . 2 26 12 Peak Tracking Total 9 | . 3 9 7 Tactical Retreats 4 | . . 2 2 Traps | -11 -10 -10 -7 ------- Run | Yrd Mat Sub Rec Traps Triggered . | . . . . Indirectly . | . . . . Trap Hack Attempts . | . . . . Triggered . | . . . . Disarmed . | . . . . Reprogrammed . | . . . . Reused . | . . . . Traps Extracted . | . . . . Installed . | . . . . Triggered . | . . . . Machines | -11 -10 -10 -7 ---------- Run | Yrd Mat Sub Rec Machines Disabled . | . . . . Max in Single Turn . | . . . . Machines Repaired . | . . . . Machines Dismantled . | . . . . Machines Sabotaged . | . . . . Overloaded Fab Kills . | . . . . Hacking | -11 -10 -10 -7 --------- Run | Yrd Mat Sub Rec Machines Accessed 5 | . 2 . 3 Terminals 5 | . 2 . 3 Fabricators . | . . . . Repair Stations . | . . . . Recycling Units . | . . . . Scanalyzers . | . . . . Garrison Access . | . . . . Total Hacks 10 | . 4 . 6 Successful 4 | . 2 . 2 Failed 6 | . 2 . 4 Catastrophic 2 | . . . 2 Database Lockouts . | . . . . Manual 1 | . 1 . . Terminals 10 | . 4 . 6 Fabricators . | . . . . Repair Stations . | . . . . Recycling Units . | . . . . Scanalyzers . | . . . . Garrison Access . | . . . . Terminal Hacks 3 | . 1 . 2 Robot Analysis 1 | . . . 1 Branch Access Points 1 | . . . 1 Zone Layout 1 | . 1 . . Fabricator Hacks . | . . . . Repair Station Hacks . | . . . . Recycling Unit Hacks . | . . . . Scanalyzer . | . . . . Garrison Access Hacks . | . . . . Unauthorized Hacks 1 | . 1 . . Terminals 1 | . 1 . . Botnet 1 | . 1 . . Fabricators . | . . . . Repair Stations . | . . . . Recycling Units . | . . . . Scanalyzers . | . . . . Garrison Access . | . . . . Data Cores Recovered . | . . . . Used . | . . . . Hacking Detections 4 | . 2 . 2 Full Trace Events . | . . . . Feedback Events . | . . . . Feedback Blocked . | . . . . Robot Schematics Acquired . | . . . . Robots Built . | . . . . Authchips . | . . . . Time . | . . . . Total Robot Build Rating . | . . . . Part Schematics Acquired . | . . . . Parts Built . | . . . . Authchips . | . . . . Time . | . . . . Total Part Build Rating . | . . . . Parts Repaired . | . . . . Time . | . . . . Parts Recycled . | . . . . Recycled Matter . | . . . . Retrieved Matter . | . . . . Retrieved Components . | . . . . Parts Scanalyzed . | . . . . Part Schematics Acquired . | . . . . Parts Damaged . | . . . . Bothacking | -11 -10 -10 -7 ------------ Run | Yrd Mat Sub Rec Used RIF Installer . | . . . . Robots Hacked . | . . . . Non-combat . | . . . . Combat . | . . . . Robot Hacks Applied . | . . . . Relay Couplers Released . | . . . . Fabnet Peak Effective % . | . . . . Robots Rewired . | . . . . Allies Hacked . | . . . . Hacks Repelled . | . . . . Allies | -11 -10 -10 -7 -------- Run | Yrd Mat Sub Rec Total Allies . | . . . . Largest Group . | . . . . Highest-Rated Group . | . . . . Highest-Rated Ally . | . . . . Total Orders . | . . . . Ally Attacks . | . . . . Total Damage . | . . . . Kills . | . . . . Allies Corrupted . | . . . . Allies Melted . | . . . . Intel | -11 -10 -10 -7 ------- Run | Yrd Mat Sub Rec Robot Analysis Total 1 | . . . 1 Derelict Logs Recovered . | . . . . Drone Launches . | . . . . Drone Recoveries . | . . . . Exploration | -11 -10 -10 -7 ------------- Run | Yrd Mat Sub Rec Turns Passed 1721 | 360 845 154 362 Spaces Moved 748 | 148 143 78 379 Core 276 | 2 . . 274 Treads 472 | 146 143 78 105 Legs . | . . . . Wheels . | . . . . Hover . | . . . . Flight . | . . . . Fastest Speed 50 | 50 160 160 50 Average Speed 120 | 158 160 160 81 Slowest Speed 160 | 160 160 160 160 Overloaded Moves . | . . . . Propulsion Burnouts . | . . . . Robots Hopped . | . . . . Cave-ins Triggered . | . . . . Exploration Rate (%) 31 | 10 30 8 79 Regions Visited 3 Branch Regions 2 Pre-discovered Areas . | . . . . Known Exits Taken . | . . . . Unknown Exits Taken 3 | 1 1 1 . Scrap Searched . | . . . . Spaces Dug . | . . . . Terrain Destroyed 23 | . . 9 14 Melee . | . . . . Projectile . | . . . . AOE 23 | . . 9 14 Terrain Rammed . | . . . . Walls Destroyed . | . . . . Machines Disabled . | . . . . Actions | -11 -10 -10 -7 --------- Run | Yrd Mat Sub Rec Total 1515 | 246 747 99 423 Wait 698 | 76 595 7 20 Move 745 | 147 142 77 379 Hop . | . . . . Pick Up 13 | 4 4 2 3 Fast Attach 11 | 7 . . 4 Attach . | . . . . Detach . | . . . . Swap 1 | . . 1 . Drop 10 | . . 3 7 Fire 36 | 12 6 9 9 Melee . | . . . . Ram . | . . . . Kick . | . . . . Crush 1 | . . . 1 Escape Stasis . | . . . . Rewire . | . . . . Trap . | . . . . Miscellaneous . | . . . . Route ------- -11/Scrapyard -10/Materials (discovered 2 exits: [*Min] / [*Sub]) -10/Subcaves -7/Recycling History --------- Turn | Location | Event 18 | -11/Scrapyard | Discovered new exit (range 16) 361 | -11/Scrapyard | Entered Materials 362 | -10/Materials | Build established: Mutant 555 | -10/Materials | Discovered new exit (range 16) 705 | -10/Materials | Discovered new exit (range 6) 1206 | -10/Materials | Entered Subcaves 1293 | -10/Subcaves | Ambushed by swarm of Subdwellers 1331 | -10/Subcaves | Discovered new exit (range 14) 1360 | -10/Subcaves | Entered Recycling 1368 | -7/Recycling | Found Scrap Engine 1582 | -7/Recycling | Core integrity fell below 50% 1721 | -7/Recycling | Core integrity fell below 20% 1722 | -7/Recycling | Destroyed by D-53 Grenadier with Mini Grenade Launcher Last Messages --------------- 01646_ Destroyed Com. Wheel. 01646_ R-06 Scavenger destroyed. 01646_ Hvy. Missile Launcher destroyed. 01646_ Destroyed Hvy. Missile Launcher. 01646_ Destroyed Com. Wheel. 01646_ R-06 Scavenger destroyed. 01646_ I-36 Angel destroyed. 01646_ K-01 Serf destroyed. 01649_ The unstable cave ceiling collapses. 01649_ G-47 Trooper destroyed. 01650_ R-06 Scavenger collects Wheel. 01655_ Dropped Hcp. Storage Unit. 01656_ Acquired Hacking Suite. 01658_ Y-54 Guardian springs to life. 01711_ Acquired Nuclear Core. 01712_ Y-54 Guardian springs to life. 01712_ I-36 Angel springs to life. 01712_ L-41 Fighter springs to life. 01712_ Dropped Nuclear Core. 01713_ D-53 Grenadier springs to life. Map ----- +----------------------------------------------------+ | | | ?????????????????????????????????????? | | ?????????????????????????????????????? | | ???????????#######################???? | | ???????????# [ ! ##### | | ???????????# = % ! / + | | ???????????# !| ! = #### | | ???????????# ! #??# | | ???????????# % #??# | | ???????????# % * ! * #??# | | ???????????# ] = [ [! #?## | | ???????????###########/#########+### | | ????????????????????# | | ?????????????????#### ### | | ?????????????????# #?## | | ?????????????????# #?##+ | | ?????????????????# """ """ #?# | | ?????????????????# """ """ ### | | ?????????????????# """ """ + | | ?????????????????# ### | | ?????????????????# #?# | | ?????????????????# """ """ #?# | | ???????????####### """ """ #?# | | ???????????#"""# # """ """ # | | ??????????##"Y" Y + | | ??????????+ @ # | | ??????????# """ """ # | | ??????????# """ """ # | | ??????????+ """ """ ### | | ??????????# #?? | | ??????????# #?? | | ??????????# """ """ #?? | | ??????????# d """ """ #?? | | ??????????# """ ""? #?? | | ??????????# ? #?? | | ??????????# ? ???? | | ??????????# r ???????? | | ??????????# ???????? | | ??????????+ ???????? | | ??????????# r ???????? | | ??????????### ########"Y"#####???????? | | ????????????# #???????"""#???????????? | | ????????????# #??????????????????????? | | ????????????# #??#####????????####???? | | ????????##### #??#!!!#????????#T"#???? | | ????????# ####! !########## "##### | | ????????# ! | | ????????# | | ????????# | | ????????# ####### ###### ##### | +----------------------------------------------------+ Best States ------------- Heat Dissipation 25 Energy Generation 10 Energy Capacity 125 Matter Stores 300 Matter Capacity 300 Sight Range 16 Terrain Scan Range 16 Terrain Scan Density 10 Evasion (%) 50 Recoil Reduction 2 Item Schematics ----------------- None Robot Schematics ------------------ None Fabricated ------------ Nothing Alien Tech Used ----------------- None Achievements -------------- None Challenges ------------ None Game ------ Seed AntimissileAccelerationSteel Manual? 0 Play Time 00:12:09 Cumulative 14.2 hours Start 2024.06.16 @ 22:53:49 End 2024.06.16 @ 23:05:03 Sessions 1 Manual Loads 0 Difficulty Rogue Special Mode None Game No. 18 Rogue 18 Adventurer 0 Explorer 0 Win Type - Total 0 Types 0/0/0/0/0/0/0/0/0 Lore% 20 Gallery% 22 Achievement% 21 Wizard Run 0 Options --------- Layout 0 ASCII 0 Keyboard 0 Movement Numpad Keybinds 0 Fullscreen 2 Font 18/X11 Map View 38x25 Zoom Use 97% Tactical HUD 1 Map Filters NONE Filters NONE Steam 1 RUN: 2999ce6c-395c-4631-bb3d-480da931f256